Cogmind - Beta 15 @@@ ROGUE MODE // 2025.06.10 @ 07:40:21 Player: CL-1C0 Result: Self-destructed Performance ------------- Evolutions (3) 1500 Regions Visited (5) 1000 Robots Destroyed (4) 20 Value Destroyed (107) 107 Prototype IDs (0) 0 Alien Tech Used (0) 0 Bonus (200) 200 TOTAL SCORE: 2827 Bonus ------- Pacifist 200 Cogmind --------- Core Integrity 109/700 Matter 300/300 Energy 99/100 System Corruption 2% Temperature Cool (12) Movement Core (50) Location -7/Storage Parts ------- > --- POWER (1) -------- (None) > --- PROPULSION (4) --- (None) > --- UTILITY (6) ------ (None) > --- WEAPON (2) ------- (None) > --- INVENTORY (5) ---- (None) Peak State ------------ > --- POWER ------------ (None) > --- PROPULSION ------- Surge Thruster Surge Thruster Xenon Bombardment Thruster > --- UTILITY ---------- Melee Analysis Suite > --- WEAPON ----------- (None) > --- INVENTORY -------- Mini Grenade Launcher [Rating: 13] Favorites ----------- Power None Propulsion Surge Thruster Treads Light Treads Flight Unit Surge Thruster Utility Melee Analysis Suite Processor Melee Analysis Suite Weapon Mini Grenade Launcher Launcher Mini Grenade Launcher Build | -11 -10 -9 -8 -7 -7 ------- Run | Yrd Mat Mat Mat Fac Sto Slots Evolved 6 | . . 2 2 2 . Power . | . . . . . . Propulsion 2 | . . . 1 1 . Utility 4 | . . 2 1 1 . Weapon . | . . . . . . Parts Attached 6 | 1 . . 4 1 . Power . | . . . . . . Engine . | . . . . . . Core . | . . . . . . Reactor . | . . . . . . Propulsion 4 | 1 . . 2 1 . Treads 1 | 1 . . . . . Leg . | . . . . . . Wheel . | . . . . . . Hover . | . . . . . . Flight 3 | . . . 2 1 . Utility 1 | . . . 1 . . Device . | . . . . . . Storage . | . . . . . . Processor 1 | . . . 1 . . Hackware . | . . . . . . Protection . | . . . . . . Artifact . | . . . . . . Weapon 1 | . . . 1 . . Energy Gun . | . . . . . . Energy Cannon . | . . . . . . Ballistic Gun . | . . . . . . Ballistic Cannon . | . . . . . . Launcher 1 | . . . 1 . . Special Weapon . | . . . . . . Impact Weapon . | . . . . . . Slashing Weapon . | . . . . . . Piercing Weapon . | . . . . . . Special Melee Weapon . | . . . . . . Unidentified Prototypes . | . . . . . . Parts Lost 6 | . . . 1 . 5 Power . | . . . . . . Propulsion 4 | . . . 1 . 3 Utility 1 | . . . . . 1 Weapon 1 | . . . . . 1 Highest Loss Streak 5 | . . . 1 . 5 To Critical Strikes . | . . . . . . Average Backups . | 4 . . . 1 . Power . | 1 . . . . . Propulsion . | 2 . . . . . Utility . | . . . . . . Weapon . | 1 . . . 1 . Tool/Special . | . . . . . . Unused Backups . | . . . . . . Power . | . . . . . . Propulsion . | . . . . . . Utility . | . . . . . . Weapon . | . . . . . . Tool/Special . | . . . . . . Average Slot Usage (%) 11 | . 14 11 6 26 10 Treads 4 | . 14 11 2 . . Flight 4 | . . . 3 19 7 Processor 1 | . . . . 7 2 Peak Build Rating 13 | 1 1 1 9 13 13 Average Rating 2 | 1 1 1 1 12 3 On Entrance 5 | 6 1 1 1 9 13 Naked Turns 106 | . . . 68 . 38 Heaviest Build 1 | . . . 1 . . Greatest Support 12 | 3 3 3 6 12 12 Greatest Overweight (x) . | . . . . . . Average Overweight (x) . | . . . . . . Largest Inventory Capacity 5 | 5 5 5 5 5 5 Average Capacity 5 | 5 5 5 5 5 5 Most Carried 4 | 4 . . 1 1 1 Average Carried . | 2 . . . 1 . Final Capacity 5 | 5 5 5 5 5 5 Final Carried 1 | . . . 1 1 . Class Distribution -------------------- 76% | Mutant 23% | Sprinter Dominant Class ---------------- Mutant | -10/Materials Mutant | -9/Materials Mutant | -8/Materials Mutant | -7/Factory Mutant | -7/Storage Resources | -11 -10 -9 -8 -7 -7 ----------- Run | Yrd Mat Mat Mat Fac Sto Matter Collected 260 | 194 . 14 15 . 37 Remotely . | . . . . . . Salvage Created 76 | . . 20 56 . . Parts 8 | . . 3 5 . . Haulers Intercepted . | . . . . . . Recyclers Shooed . | . . . . . . Parts Field Recycled . | . . . . . . Retrieved Matter . | . . . . . . Parts Self-Destructed . | . . . . . . Prevented . | . . . . . . Kills | -11 -10 -9 -8 -7 -7 ------- Run | Yrd Mat Mat Mat Fac Sto Combat Hostiles Destroyed 3 | . . . 3 . . AOE 3 | . . . 3 . . Classes Destroyed 3 | . . 1 2 . . Watcher 1 | . . 1 . . . Cutter 2 | . . . 2 . . Grunt 1 | . . . 1 . . Best Kill Streak 3 | . . 1 3 . . Combat Bots Only 3 | . . . 3 . . Max Kills in Single Turn 2 | . . 1 2 . . Gunslinging . | . . . . . . Exploded 2 | . . . 2 . . Melee . | . . . . . . Uniques/NPCs Destroyed . | . . . . . . Combat | -11 -10 -9 -8 -7 -7 -------- Run | Yrd Mat Mat Mat Fac Sto Hostile Shots Fired 190 | . 18 15 34 8 115 Missed 92 | . 7 7 15 6 57 Hits 98 | . 11 8 19 2 58 Projectile 98 | . 11 8 19 2 58 AOE 2 | . . . 2 . . Critical Strikes 3 | . . . 1 . 2 Damage Taken 1227 | . 83 108 312 37 687 Core 890 | . 39 73 187 20 571 Absorbed by Shields . | . . . . . . Core Remaining (%) 82 | 100 84 81 66 . . Volleys Fired 2 | . . . 2 . . Largest 1 | . . . 1 . . Hottest 30 | . . . 30 . . Shots Fired 2 | . . . 2 . . Gun . | . . . . . . Cannon . | . . . . . . Launcher 2 | . . . 2 . . Special . | . . . . . . Kinetic . | . . . . . . Thermal . | . . . . . . Explosive 2 | . . . 2 . . Electromagnetic . | . . . . . . Robot Hit Streak . | . . . . . . Robot Miss Streak . | . . . . . . Penetration Max . | . . . . . . Secondary Targets . | . . . . . . Shots Hit Robots . | . . . . . . Core Hits 5 | . . 1 3 . 1 Critical Kills . | . . . . . . Critical Parts Destroyed . | . . . . . . Critical Strikes . | . . . . . . Melee Attacks . | . . . . . . Impact . | . . . . . . Slashing . | . . . . . . Piercing . | . . . . . . Sneak Attacks . | . . . . . . Combat Hostiles . | . . . . . . Follow-up Attacks . | . . . . . . Damage Inflicted 203 | . . 20 156 . 27 Guns . | . . . . . . Cannons . | . . . . . . Explosions 156 | . . . 156 . . Melee . | . . . . . . Ramming 47 | . . 20 . . 27 Kinetic . | . . . . . . Thermal . | . . . . . . Explosive 156 | . . . 156 . . Electromagnetic . | . . . . . . Impact . | . . . . . . Slashing . | . . . . . . Piercing . | . . . . . . Highest Corruption 2 | . . . . . 2 Average Corruption 2 | . . . . . 2 Corruption Purged . | . . . . . . Corruption Blocked . | . . . . . . Effects 1 | . . . . . 1 Matter Fused 1 | . . . . . 1 Overload Shots . | . . . . . . Overflow Damage . | . . . . . . Projectiles . | . . . . . . Explosions . | . . . . . . Melee . | . . . . . . Knockbacks . | . . . . . . Impact . | . . . . . . Kinetic . | . . . . . . Secondary . | . . . . . . Self-Inflicted Damage 22 | . . 10 . . 12 Shots . | . . . . . . Rammed 8 | . . 2 . . 6 Targets Rammed 8 | . . 2 . . 6 Kicked . | . . . . . . Crushed . | . . . . . . Highest Temperature . | . . . . . . Average Temperature . | . . . . . . Received Heat Transfer 282 | . . 48 108 9 117 Siege Activations . | . . . . . . Martial Activations . | . . . . . . Shielding Activations . | . . . . . . Robots Disrupted . | . . . . . . Combat Hostiles . | . . . . . . Robots Corrupted . | . . . . . . Combat Hostiles . | . . . . . . Parts Fried . | . . . . . . Impact Corruptions . | . . . . . . Robots Melted . | . . . . . . Combat Hostiles . | . . . . . . Parts Melted . | . . . . . . Heat Transferred . | . . . . . . Parts Sabotaged . | . . . . . . Parts Stolen . | . . . . . . Parts Stripped . | . . . . . . Power Chain Reactions . | . . . . . . Alert | -11 -10 -9 -8 -7 -7 ------- Run | Yrd Mat Mat Mat Fac Sto Maximum Alert Level . | . . . . . . Low Security (%) 100 | 100 100 100 100 100 100 Level 1 . | . . . . . . Level 2 . | . . . . . . Level 3 . | . . . . . . Level 4 . | . . . . . . Level 5 . | . . . . . . High Security . | . . . . . . Max Security . | . . . . . . Peak Influence 144 | . . 7 144 80 61 Initial 65 | . . . 2 65 31 Average 32 | . . . 50 72 24 Influence Increases 286 | . . 7 174 15 90 Destroy 0b10 Robot/C 60 | . . . 60 . . Destroy 0b10 Robot/NC 5 | . . 5 . . . Destroy Leader 12 | . . 2 10 . . Disable Machine 15 | . . . 15 . . Destroy Structure 14 | . . . 14 . . Partial Spotted 60 | . . . . 15 45 Lose Combat Pursuer 120 | . . . 75 . 45 Influence Decreases 235 | . . . 37 89 109 Entered New Map 123 | . . . 5 79 39 Time Decay 60 | . . . 30 10 20 Lost Part 52 | . . . 2 . 50 Squads Dispatched 5 | . . 1 2 2 . Investigation 3 | . . . 1 2 . Extermination . | . . . . . . Reinforcement 2 | . . 1 1 . . Assault . | . . . . . . Garrison . | . . . . . . Intercept . | . . . . . . Searches Triggered . | . . . . . . Construction Impeded . | . . . . . . Haulers Reinforced . | . . . . . . Active Scanning Responses . | . . . . . . Cargo Convoy Interrupts . | . . . . . . Stealth | -11 -10 -9 -8 -7 -7 --------- Run | Yrd Mat Mat Mat Fac Sto Distress Signals 2 | . . . 1 . 1 Communications Jammed . | . . . . . . Distress Signals . | . . . . . . Times Spotted 44 | . 4 8 10 7 15 Peak Tracking Total 13 | . 4 7 5 7 13 Tactical Retreats 4 | . . . 3 . 1 Traps | -11 -10 -9 -8 -7 -7 ------- Run | Yrd Mat Mat Mat Fac Sto Traps Triggered . | . . . . . . Indirectly . | . . . . . . Trap Hack Attempts . | . . . . . . Triggered . | . . . . . . Disarmed . | . . . . . . Reprogrammed . | . . . . . . Reused . | . . . . . . Traps Extracted . | . . . . . . Installed . | . . . . . . Triggered . | . . . . . . Machines | -11 -10 -9 -8 -7 -7 ---------- Run | Yrd Mat Mat Mat Fac Sto Machines Disabled 1 | . . . 1 . . Max in Single Turn 1 | . . . 1 . . Machines Repaired . | . . . . . . Machines Dismantled . | . . . . . . Machines Sabotaged . | . . . . . . Overloaded Fab Kills . | . . . . . . Hacking | -11 -10 -9 -8 -7 -7 --------- Run | Yrd Mat Mat Mat Fac Sto Machines Accessed 3 | . . . 1 2 . Terminals 2 | . . . 1 1 . Fabricators . | . . . . . . Repair Stations . | . . . . . . Recycling Units 1 | . . . . 1 . Scanalyzers . | . . . . . . Garrison Access . | . . . . . . Total Hacks 9 | . . . 2 7 . Successful 1 | . . . . 1 . Failed 8 | . . . 2 6 . Catastrophic 3 | . . . 1 2 . Database Lockouts . | . . . . . . Manual 7 | . . . 2 5 . Terminals 7 | . . . 2 5 . Fabricators . | . . . . . . Repair Stations . | . . . . . . Recycling Units 2 | . . . . 2 . Scanalyzers . | . . . . . . Garrison Access . | . . . . . . Terminal Hacks . | . . . . . . Fabricator Hacks . | . . . . . . Repair Station Hacks . | . . . . . . Recycling Unit Hacks 1 | . . . . 1 . Retrieve Components 1 | . . . . 1 . Scanalyzer . | . . . . . . Garrison Access Hacks . | . . . . . . Unauthorized Hacks . | . . . . . . Terminals . | . . . . . . Fabricators . | . . . . . . Repair Stations . | . . . . . . Recycling Units . | . . . . . . Scanalyzers . | . . . . . . Garrison Access . | . . . . . . Data Cores Recovered . | . . . . . . Used . | . . . . . . Hacking Detections 3 | . . . 1 2 . Full Trace Events 3 | . . . 1 2 . Feedback Events . | . . . . . . Feedback Blocked . | . . . . . . Robot Schematics Acquired . | . . . . . . Robots Built . | . . . . . . Authchips . | . . . . . . Time . | . . . . . . Total Robot Build Rating . | . . . . . . Part Schematics Acquired . | . . . . . . Parts Built . | . . . . . . Authchips . | . . . . . . Time . | . . . . . . Total Part Build Rating . | . . . . . . Parts Repaired . | . . . . . . Time . | . . . . . . Parts Recycled . | . . . . . . Recycled Matter . | . . . . . . Retrieved Matter . | . . . . . . Retrieved Components 2 | . . . . 2 . Parts Scanalyzed . | . . . . . . Part Schematics Acquired . | . . . . . . Parts Damaged . | . . . . . . Bothacking | -11 -10 -9 -8 -7 -7 ------------ Run | Yrd Mat Mat Mat Fac Sto Used RIF Installer . | . . . . . . Robots Hacked . | . . . . . . Non-combat . | . . . . . . Combat . | . . . . . . Robot Hacks Applied . | . . . . . . Relay Couplers Released . | . . . . . . Fabnet Peak Effective % . | . . . . . . Robots Rewired . | . . . . . . Allies Hacked . | . . . . . . Hacks Repelled . | . . . . . . Allies | -11 -10 -9 -8 -7 -7 -------- Run | Yrd Mat Mat Mat Fac Sto Total Allies . | . . . . . . Largest Group . | . . . . . . Highest-Rated Group . | . . . . . . Highest-Rated Ally . | . . . . . . Total Orders . | . . . . . . Ally Attacks . | . . . . . . Total Damage . | . . . . . . Kills . | . . . . . . Allies Corrupted . | . . . . . . Allies Melted . | . . . . . . Intel | -11 -10 -9 -8 -7 -7 ------- Run | Yrd Mat Mat Mat Fac Sto Active Infowar (turns) . | . . . . . . Robot Analysis Total . | . . . . . . Derelict Logs Recovered . | . . . . . . Drone Launches . | . . . . . . Drone Recoveries . | . . . . . . Exploration | -11 -10 -9 -8 -7 -7 ------------- Run | Yrd Mat Mat Mat Fac Sto Turns Passed 276 | 4 41 37 114 25 55 Spaces Moved 566 | 1 81 70 223 78 113 Core 390 | 1 81 70 169 . 69 Treads . | . . . . . . Legs . | . . . . . . Wheels . | . . . . . . Hover . | . . . . . . Flight 176 | . . . 54 78 44 Fastest Speed 30 | 50 50 50 32 30 30 Average Speed 44 | 50 50 50 45 30 42 Slowest Speed 50 | 50 50 50 50 32 50 Overloaded Moves . | . . . . . . Propulsion Burnouts . | . . . . . . Robots Hopped 5 | . . . 1 3 1 Potential Cave-ins . | . . . . . . Cave-ins Triggered . | . . . . . . Exploration Rate (%) 20 | 2 29 15 33 4 38 Regions Visited 5 Branch Regions 1 Pre-discovered Areas . | . . . . . . Known Exits Taken . | . . . . . . Unknown Exits Taken 5 | 1 1 1 1 1 . Scrap Searched . | . . . . . . Spaces Dug . | . . . . . . Terrain Destroyed 16 | . . . 16 . . Melee . | . . . . . . Projectile . | . . . . . . AOE 16 | . . . 16 . . Terrain Rammed . | . . . . . . Walls Destroyed . | . . . . . . Machines Disabled . | . . . . . . Actions | -11 -10 -9 -8 -7 -7 --------- Run | Yrd Mat Mat Mat Fac Sto Total 580 | 5 80 71 230 75 119 Wait 1 | . . . 1 . . Move 553 | . 80 69 220 73 111 Hop 3 | . . . 1 1 1 Pick Up 1 | . . . 1 . . Fast Attach 4 | . . . 3 1 . Attach 3 | 1 . . 1 . 1 Detach 1 | . . . 1 . . Swap . | . . . . . . Drop 4 | 4 . . . . . Fire 2 | . . . 2 . . Melee . | . . . . . . Ram 8 | . . 2 . . 6 Kick . | . . . . . . Crush . | . . . . . . Escape Stasis . | . . . . . . Rewire . | . . . . . . Trap . | . . . . . . Miscellaneous . | . . . . . . Route ------- -11/Scrapyard -10/Materials (discovered 2 exits: [*Mat] / [*Min]) -9/Materials -8/Materials -7/Factory (discovered 2 exits: [*Sto] / [*Low]) -7/Storage History --------- Turn | Location | Event 1 | -11/Scrapyard | Released all parts (6) 5 | -11/Scrapyard | Discovered new exit (range 0) 5 | -11/Scrapyard | Entered Materials 23 | -10/Materials | Discovered new exit (range 16) 36 | -10/Materials | Discovered new exit (range 15) 46 | -10/Materials | Entered another Materials area 46 | -9/Materials | Evolved 2 slots: Utility x2 76 | -9/Materials | Discovered new exit (range 14) 83 | -9/Materials | Entered another Materials area 83 | -8/Materials | Evolved 2 slots: Propulsion x1, Utility x1 195 | -8/Materials | Discovered new exit (range 5) 197 | -8/Materials | Entered Factory 197 | -7/Factory | Evolved 2 slots: Propulsion x1, Utility x1 214 | -7/Factory | Discovered new exit (range 6) 215 | -7/Factory | Discovered new exit (range 15) 222 | -7/Factory | Entered Storage 262 | -7/Storage | Core integrity fell below 50% 270 | -7/Storage | Lost 5 parts (3n1u1w) 277 | -7/Storage | Self-destructed Last Messages --------------- GOAL=ESCAPE 00232_ W-25 Informer sends out distress signal. 00235_ C-30 ARC bursts open, deploying its payload. 00235_ S-27 Virus unfolds itself. 00235_ Surge Thruster destroyed. 00236_ Mni. Grenade Launcher destroyed. 00237_ Surge Thruster destroyed. 00237_ Xenon Bombardment Thruster destroyed. 00239_ Melee Analysis Suite destroyed. 00240_ Slammed into S-27 Virus. 00241_ K-01 Serf collects debris. 00242_ Acquired 37 matter. 00246_ K-01 Serf collects debris. 00246_ S-27 Virus destroyed. 00247_ Door malfunctions. 00250_ P-60 Hacker resets A-02 Transporter, system corruption cleaned. 00258_ K-01 Serf collects debris. 00265_ System corrupted: Matter fused (-8). 00266_ Slammed into R-06 Scavenger. 00267_ Slammed into Y-54 Guardian. Map ----- +----------------------------------------------------+ | #??????????????????????????????????? | | #??????????????????????????????????? | | #??????????????????????????????????? | | ########???????????????????????????? | | ????????????????????????????? | | #?????????????????????????????? | | #?????????????????????????????? | | ######????????????????????????? | | ?????????????????????????? | | #?????????????????????????????? | | #?????????????????????????????? | | # #?????????????????????????????? | | #### #?????????????????????????????? | | ???# #???????? ? ??????????????????? | | ???+ +??????# ?????????????????? | | ???# #??????? "" "?????????????????? | | #### #??????? ""T??????????????????? | | #+#?????? ""??????????????????? | | #?????? ??????????????????? | | #??????#/#??????????????????? | | ^ #??????# #??????????????????? | | ##????## ##?????????????????? | | ^ ###### #?????????????????? | | #### p%%Ysg######??##????????? | | ???# ######s #?# ####?????? | | ???# ####"##????## @ # #?????? | | +? ?????# # #?????? | | ######### #???# ; """#?????? | | ????????# #???######### """#?????? | | ????????# #???????????? """#?????? | | ????????# #????????????? #?????? | | ????????#########?????????????######?????? | | | | | | | | | | | | | | | | | | | | | | | | | | | | | | | | | | | | | +----------------------------------------------------+ Best States ------------- Heat Dissipation 34 Energy Generation 5 Energy Capacity 100 Matter Stores 300 Matter Capacity 300 Sight Range 16 Terrain Scan Density 10 Evasion (%) 64 Melee Accuracy 5 Item Schematics ----------------- None Robot Schematics ------------------ None Fabricated ------------ Nothing Repaired ---------- Nothing Alien Tech Used ----------------- None Achievements -------------- None Challenges ------------ None Game ------ Seed BiometalHackingShovel Manual? 0 Play Time 00:05:28 Cumulative 532.2 hours Start 2025.06.10 @ 07:35:54 End 2025.06.10 @ 07:40:21 Sessions 1 Manual Loads 0 Difficulty Rogue Special Mode None Game No. 623 Rogue 623 Adventurer 0 Explorer 0 Win Type - Total 18 Types 12/0/5/1/0/0/0/0/0/0 Lore% 83 Gallery% 82 Achievement% 82 Wizard Run 0 Options --------- Layout 0 ASCII 0 Keyboard 0 Movement Numpad Keybinds 0 Fullscreen 1 Font 18/SmallcapsGlow Map View 76x50 Zoom Use 0% Tactical HUD 1 Map Filters NONE Filters NONE Steam 1 RUN: bf8583b2-ef8d-4354-99de-31f81bfd9961